fUST/lending_fUST_20250826
["ID","MTS","AMOUNT","RATE_DAILY","PERIOD"]
[381360284,1756152430207,-7945.20802627,0.00030613,2]
[381360285,1756152431153,-649.45691647,0.00030613,2]
[381360286,1756152444783,5000.0,0.0002701,2]
[381360287,1756152461764,5000.0,0.0002711,2]
[381360288,1756152468202,714.55827471,0.00025147,2]
[381360289,1756152477503,4285.45172529,0.0002711,2]
[381360290,1756152477534,714.54827471,0.0002711,2]
[381360291,1756152480314,1257.02617224,0.000199,2]
[381360292,1756152480445,1257.02617197,0.00021627,2]
[381360293,1756152480959,1257.02617197,0.00023353,2]
[381360294,1756152481014,1257.02617197,0.0002508,2]
[381360295,1756152481046,1257.02617197,0.00026806,6]
[381360296,1756152481464,221.11,0.00018981,5]
[381360297,1756152481836,221.11,0.00018981,2]
[381360298,1756152493791,2558.11086517,0.0002711,2]
[381360299,1756152493813,2441.88913483,0.0002711,2]
[381360300,1756152506157,2070.12,0.00026079,2]
[381360301,1756152509141,5000.0,0.0002711,2]
[381360302,1756152524510,488.00086517,0.0002711,2]
[381360303,1756152524535,4511.99913483,0.0002711,2]
[381360304,1756152524921,164.020906,0.00013699,2]
[381360305,1756152525164,164.020906,0.00022505,2]
[381360306,1756152541335,5000.0,0.0002711,2]
[381360307,1756152546096,-199.0,0.00028333,10]
[381360308,1756152546121,-1257.02617197,0.00028533,10]
[381360309,1756152546145,-405.92934971,0.00030259,13]
[381360310,1756152546175,-851.09682226,0.00030259,13]
[381360311,1756152546198,-199.0,0.00030413,120]
[381360312,1756152546217,-171.80774006,0.0003042,2]
[381360313,1756152557240,3228.09915183,0.0002711,2]
[381360314,1756152557264,159.96905317,0.0002711,2]
[381360315,1756152557288,1611.931795,0.0002711,2]
[381360316,1756152560098,165.0,8.7e-07,2]
[381360317,1756152572106,-400.0,0.00030612,2]
[381360318,1756152572126,-1405.18505726,0.00030613,2]
[381360319,1756152572147,-370.33700543,0.00030613,2]
[381360320,1756152573178,5000.0,0.0002711,2]
[381360321,1756152590039,3223.078205,0.0002711,2]
[381360322,1756152590062,1776.921795,0.0002711,2]
[381360323,1756152601343,-314.03253857,0.00030613,2]
[381360324,1756152601364,-587.7072527,0.00030613,2]
[381360325,1756152601389,-500.0,0.00030673,5]
[381360326,1756152603408,500.0,0.00030673,5]
[381360327,1756152606108,420.07020873,0.0003087,2]
[381360328,1756152616887,-4579.92979127,0.0003087,2]
[381360329,1756152617146,-199.0,0.0003087,10]
[381360330,1756152617178,-199.0,0.000309,120]
[381360331,1756152617328,-1600.0,0.00030968,2]
[381360332,1756152617366,-400.0,0.00030969,2]
[381360333,1756152617399,-258.0,0.00030969,2]
[381360334,1756152617432,-300.0,0.00030969,2]
[381360335,1756152617463,-400.0,0.00030969,2]
[381360336,1756152617494,-400.0,0.00030969,2]
[381360337,1756152617528,-804.44,0.0003097,10]
[381360338,1756152617652,-2074.11049161,0.0003097,2]
[381360339,1756152618781,670.36,0.0003097,10]
[381360340,1756152620455,199.0,0.0003077,10]
[381360341,1756152621442,4982.42901678,0.00030973,2]
[381360342,1756152621469,17.57098322,0.00030973,2]
[381360343,1756152623671,199.0,0.000308,120]
[381360344,1756152627356,-500.0,0.00030973,5]
[381360345,1756152627390,-500.0,0.00030973,5]
[381360346,1756152627422,-500.0,0.00030973,5]
[381360347,1756152627454,-500.0,0.00030973,5]
[381360348,1756152627487,-500.0,0.00030973,5]
[381360349,1756152627526,-500.0,0.00030973,5]
[381360350,1756152627557,-500.0,0.00030973,5]
[381360351,1756152627588,-500.0,0.00030973,5]
[381360352,1756152627619,-500.0,0.00030973,5]
[381360353,1756152627648,-500.0,0.00030973,5]
[381360354,1756152627897,-500.0,0.00030973,5]
[381360355,1756152629358,558.64,0.0003097,10]
[381360430,1756152632554,170.0,0.00029211,120]
[381360431,1756152633936,170.0,0.00030671,120]
[381360458,1756152635317,-72.16187961,0.00030973,2]
[381360461,1756152635328,-964.53441776,0.00030973,2]
[381360464,1756152635345,-36170.70342289,0.00030973,2]
[381360466,1756152635364,-462.215,0.00030973,2]
[381360468,1756152635375,-260.19628691,0.00030973,2]
[381360518,1756152637853,-12070.18899283,0.00030973,2]
[381360519,1756152637864,-11507.86459742,0.0003098,2]
[381360523,1756152638040,-601.9999984,0.0003098,2]
[381360529,1756152638395,-1688.07125169,0.0003098,2]
[381360531,1756152638407,-38107.22385949,0.0003098,2]
[381360533,1756152638417,-4148.22098322,0.0003098,2]
[381360535,1756152638428,-5000.0,0.0003098,2]
[381360537,1756152638438,-346.48575226,0.00030989,2]
[381360539,1756152638448,-500.0,0.00030989,2]
[381360541,1756152638458,-500.0,0.00030989,2]
[381360543,1756152638468,-500.0,0.00030989,2]
[381360545,1756152638477,-500.0,0.00030989,2]
[381360547,1756152638487,-500.0,0.00030989,2]
[381360549,1756152638497,-500.0,0.00030989,2]
[381360551,1756152638507,-500.0,0.00030989,2]
[381360553,1756152638516,-500.0,0.00030989,2]
[381360556,1756152638529,-500.0,0.00030989,2]
[381360557,1756152638539,-500.0,0.00030989,2]
[381360559,1756152638549,-500.0,0.00030989,2]
[381360561,1756152638559,-100000.0,0.0003099,2]
[381360563,1756152638570,-157.0,0.00031,120]
[381360565,1756152638581,-155.03639077,0.000311,2]
[381360567,1756152638591,-155.03639077,0.000311,2]
[381360569,1756152638601,-1000.0,0.00031221,5]
[381360571,1756152638611,-216.0,0.00031226,120]
[381360573,1756152638621,-164.020906,0.00031311,2]
[381360575,1756152638631,-1000.0,0.00031521,5]
[381360577,1756152638641,-1000.0,0.00031521,5]
[381360579,1756152638651,-1000.0,0.00031521,5]
[381360580,1756152638662,-664.74471917,0.00031521,5]
[381360581,1756152638672,-1000.0,0.00031521,5]
[381360582,1756152638683,-1000.0,0.00031521,5]
[381360583,1756152638693,-1000.0,0.00031521,5]
[381360584,1756152638703,-1000.0,0.00031521,5]
[381360586,1756152638713,-1000.0,0.00031521,5]
[381360588,1756152638724,-1000.0,0.00031521,5]
[381360590,1756152638734,-174.08255984,0.00031521,5]
[381360592,1756152638744,-912.61868069,0.00031572,2]
[381360593,1756152638754,-1031.85,0.00031573,5]
[381360594,1756152638764,-6256.77064186,0.00031588,2]
[381360595,1756152638774,-500.0,0.00031598,2]
[381360596,1756152638784,-53498.81142521,0.00031599,20]
[381360597,1756152638794,-5978.59844974,0.00031599,7]
[381360598,1756152638803,-150.0,0.00031599,2]
[381360599,1756152638813,-237.832612,0.00031599,10]
[381360600,1756152638823,-220.76771929,0.0003161,2]
[381360601,1756152638833,-1584.14,0.00031646,2]
[381360602,1756152638843,-5000.0,0.00031647,4]
[381360603,1756152638853,-2074.11049161,0.00031652,2]
[381360604,1756152638863,-340.0,0.00031653,2]
[381360605,1756152638873,-25952.5798535,0.00031663,2]
[381360606,1756152638883,-2074.11049161,0.00031668,2]
[381360607,1756152638892,-2074.11049161,0.0003167,2]
[381360608,1756152638902,-500.0,0.00031673,5]
[381360609,1756152638912,-618.61357223,0.00031673,5]
[381360610,1756152638922,-500.0,0.00031673,5]
[381360611,1756152638932,-252.57271047,0.00031673,5]
[381360612,1756152638942,-505.41813531,0.00031673,5]
[381360613,1756152638952,-500.0,0.00031673,5]
[381360614,1756152638962,-500.0,0.00031673,5]
[381360615,1756152638972,-500.0,0.00031673,5]
[381360616,1756152638983,-421.83324508,0.00031673,5]
[381360617,1756152638994,-500.0,0.00031673,5]
[381360618,1756152639004,-576.39852768,0.00031673,2]
[381360619,1756152639015,-633.86486829,0.00031673,5]
[381360620,1756152639027,-506.22732636,0.00031673,5]
[381360621,1756152639038,-500.0,0.00031673,5]
[381360622,1756152639048,-500.0,0.00031673,5]
[381360623,1756152639058,-500.0,0.00031673,5]
[381360624,1756152639068,-500.0,0.00031673,5]
[381360625,1756152639079,-500.0,0.00031673,5]
[381360626,1756152639089,-500.0,0.00031673,5]
[381360627,1756152639099,-574.00427768,0.00031673,5]
[381360628,1756152639110,-500.0,0.00031673,5]
[381360629,1756152639120,-500.0,0.00031673,5]
[381360630,1756152639130,-500.0,0.00031673,5]
[381360631,1756152639140,-500.0,0.00031673,5]
[381360632,1756152639150,-501.00116031,0.00031673,5]
[381360633,1756152639160,-522.64815616,0.00031673,5]
[381360634,1756152639170,-500.84414476,0.00031673,5]
[381360635,1756152639180,-500.0,0.00031673,5]
[381360636,1756152639190,-446.17143664,0.00031673,5]
[381360637,1756152639200,-500.0,0.00031673,5]
[381360638,1756152639210,-500.0,0.00031673,5]
[381360639,1756152639220,-500.0,0.00031673,5]
[381360640,1756152639230,-500.0,0.00031673,5]
[381360641,1756152639240,-500.0,0.00031673,5]
[381360642,1756152639252,-500.0,0.00031673,5]
[381360643,1756152639262,-51905.159707,0.00031678,2]
[381360644,1756152639272,-2074.11049161,0.00031678,2]
[381360645,1756152639283,-254.2650019,0.00031679,2]
[381360646,1756152639293,-500.0,0.00031679,2]
[381360647,1756152639303,-500.0,0.00031679,2]
[381360648,1756152639312,-500.0,0.00031679,2]
[381360649,1756152639322,-500.0,0.00031679,2]
[381360650,1756152639332,-434.4409436,0.00031679,2]
[381360651,1756152639347,-1584.14,0.0003168,2]
[381360652,1756152639356,-1584.14,0.0003168,2]
[381360654,1756152639367,-1584.14,0.0003168,2]
[381360655,1756152639425,-1584.14,0.0003168,2]
[381360656,1756152639436,-1584.18,0.0003168,2]
[381360657,1756152639445,-2074.11049161,0.0003168,2]
[381360658,1756152639455,-51905.159707,0.00031688,2]
[381360659,1756152639464,-4148.22098322,0.00031688,2]
[381360660,1756152639474,-51905.159707,0.0003169,2]
[381360661,1756152639484,-2074.11049161,0.0003169,2]
[381360662,1756152639493,-98464.152861,0.00031698,2]
[381360663,1756152639503,-164.932012,0.00031698,7]
[381360664,1756152639512,-151.0,0.00031698,7]
[381360665,1756152639522,-151.0,0.00031698,7]
[381360666,1756152639534,-151.0,0.00031698,7]
[381360667,1756152639545,-151.0,0.00031698,7]
[381360668,1756152639555,-438.979924,0.00031698,7]
[381360669,1756152639565,-151.0,0.00031698,7]
[381360670,1756152639574,-151.0,0.00031698,7]
[381360671,1756152639584,-438.979924,0.00031698,7]
[381360672,1756152639594,-151.0,0.00031698,7]
[381360673,1756152639605,-438.979924,0.00031698,7]
[381360674,1756152639615,-151.0,0.00031698,7]
[381360675,1756152639624,-438.979924,0.00031698,7]
[381360676,1756152639634,-44578.13,0.000317,7]
[381360677,1756152639643,-19228.97,0.000317,2]
[381360678,1756152639652,-151.0,0.000317,7]
[381360679,1756152639662,-2771.42,0.000317,7]
[381360680,1756152639672,-376.30788339,0.000317,7]
[381360681,1756152639681,-364.19,0.000317,7]
[381360682,1756152639691,-160.0,0.000317,7]
[381360683,1756152639701,-151.0,0.000317,7]
[381360684,1756152639711,-151.0,0.000317,7]
[381360685,1756152639721,-151.0,0.000317,7]
[381360686,1756152639731,-151.0,0.000317,7]
[381360687,1756152639740,-160.0,0.000317,7]
[381360688,1756152639750,-151.0,0.000317,7]
[381360689,1756152639759,-217.12848614,0.000317,7]
[381360690,1756152639769,-151.0,0.000317,7]
[381360691,1756152639784,-151.0,0.000317,7]
[381360692,1756152639794,-151.0,0.000317,7]
[381360693,1756152639805,-151.0,0.000317,7]
[381360694,1756152639814,-151.0,0.000317,7]
[381360695,1756152639824,-151.0,0.000317,7]
[381360696,1756152639834,-151.0,0.000317,7]
[381360697,1756152639844,-151.0,0.000317,7]
[381360698,1756152639853,-160.0,0.000317,7]
[381360699,1756152639863,-160.0,0.0003172,2]
[381360700,1756152639874,-844.86965257,0.00031743,2]
[381360701,1756152639884,-1500.0,0.00031768,5]
[381360702,1756152639893,-2074.11049161,0.00031784,2]
[381360703,1756152639903,-12701.40788335,0.00031794,2]
[381360704,1756152639913,-500.0,0.00031872,2]
[381360705,1756152639923,-600.0,0.00031895,20]
[381360706,1756152639933,-232.4766599,0.00031934,2]
[381360707,1756152639943,-160.0,0.00031934,2]
[381360708,1756152639953,-160.0,0.00031934,2]
[381360709,1756152639963,-529.29072822,0.00031934,2]
[381360710,1756152639974,-160.0,0.00031934,2]
[381360711,1756152639984,-376.30788339,0.00031934,2]
[381360712,1756152639994,-912.61868067,0.00031954,2]
[381360713,1756152640004,-1257.02617197,0.00031986,17]
[381360714,1756152640015,-356.75449853,0.00032021,2]
[381360715,1756152640029,-1425.59097614,0.00032021,2]
[381360716,1756152640039,-170.0,0.0003204,120]
[381360717,1756152640048,-609.48954312,0.00032068,5]
[381360718,1756152640058,-1211.20733156,0.00032068,5]
[381360719,1756152640068,-1501.18062215,0.00032068,5]
[381360720,1756152640079,-1500.0,0.00032068,5]
[381360721,1756152640089,-1500.0,0.00032068,5]
[381360722,1756152640100,-1500.0,0.00032068,5]
[381360723,1756152640110,-1500.0,0.00032068,5]
[381360724,1756152640120,-1500.0,0.00032068,5]
[381360725,1756152640129,-451.01588107,0.00032068,5]
[381360726,1756152640139,-500.0,0.00032145,2]
[381360727,1756152640149,-160.0,0.00032153,2]
[381360728,1756152640159,-216.04034502,0.00032153,2]
[381360729,1756152640169,-25952.5798535,0.000322,2]
[381360730,1756152640179,-2074.11049161,0.00032211,2]
[381360731,1756152640190,-1000.0,0.00032221,5]
[381360732,1756152640199,-1000.0,0.00032221,5]
[381360733,1756152640209,-500.0,0.00032221,5]
[381360734,1756152640219,-257.23327544,0.00032221,5]
[381360735,1756152640228,-587.34314269,0.00032221,5]
[381360736,1756152640238,-1000.0,0.00032221,5]
[381360737,1756152640248,-478.19141886,0.00032221,5]
[381360738,1756152640258,-1000.0,0.00032221,5]
[381360739,1756152640267,-1000.0,0.00032221,5]
[381360740,1756152640280,-1000.0,0.00032221,5]
[381360741,1756152640290,-1000.0,0.00032221,5]
[381360742,1756152640299,-1000.0,0.00032221,5]
[381360743,1756152640309,-1000.0,0.00032221,5]
[381360744,1756152640319,-575.97760409,0.00032221,5]
[381360745,1756152640328,-1000.0,0.00032221,5]
[381360746,1756152640339,-1000.0,0.00032221,5]
[381360747,1756152640352,-1000.0,0.00032221,5]
[381360748,1756152640362,-648.18439629,0.00032221,5]
[381360749,1756152640372,-1000.0,0.00032221,5]
[381360750,1756152640383,-1000.0,0.00032221,5]
[381360751,1756152640393,-595.85169125,0.00032221,5]
[381360752,1756152640403,-300.0,0.00032241,20]
[381360753,1756152640413,-300.0,0.00032241,20]
[381360754,1756152640423,-260.0,0.00032268,2]
[381360755,1756152640433,-500.05206302,0.0003231,2]
[381360756,1756152640443,-2000.0,0.00032316,5]
[381360757,1756152640453,-500.0,0.00032321,5]
[381360758,1756152640463,-500.0,0.00032321,5]
[381360759,1756152640473,-912.61868067,0.00032336,2]
[381360760,1756152640483,-160.0,0.00032343,2]
[381360761,1756152640493,-160.0,0.00032343,2]
[381360762,1756152640504,-500.0,0.00032419,2]
[381360763,1756152640513,-151.0,0.00032456,7]
[381360764,1756152640527,-151.0,0.00032456,7]
[381360765,1756152640539,-151.0,0.00032456,7]
[381360766,1756152640549,-2000.0,0.00032616,5]
[381360767,1756152640559,-2000.0,0.00032616,5]
[381360768,1756152640568,-1639.22054067,0.00032616,5]
[381360769,1756152640579,-2000.0,0.00032616,5]
[381360770,1756152640589,-1500.0,0.00032616,5]
[381360771,1756152640599,-151.0,0.00032667,7]
[381360772,1756152640609,-242.713824,0.00032667,7]
[381360773,1756152640618,-151.0,0.00032667,7]
[381360774,1756152640629,-151.0,0.00032667,7]
[381360775,1756152640638,-151.0,0.00032667,7]
[381360776,1756152640648,-151.496177,0.00032667,7]
[381360777,1756152640658,-151.0,0.00032667,7]
[381360778,1756152640668,-151.0,0.00032667,7]
[381360779,1756152640679,-151.0,0.00032667,7]
[381360780,1756152640690,-158.0,0.00032684,120]
[381360781,1756152640700,-500.0,0.00032693,2]
[381360782,1756152640710,-912.61868067,0.00032717,2]
[381360783,1756152640719,-158.0,0.00032736,120]
[381360784,1756152640729,-458.44419397,0.00032768,5]
[381360785,1756152640739,-1500.0,0.00032768,5]
[381360786,1756152640748,-1500.0,0.00032768,5]
[381360787,1756152640758,-1130.52564222,0.00032768,5]
[381360788,1756152640768,-1500.0,0.00032768,5]
[381360789,1756152640782,-501.02878889,0.00032768,5]
[381360790,1756152640792,-1506.77971099,0.00032768,5]
[381360791,1756152640804,-1500.0,0.00032768,5]
[381360792,1756152640814,-1500.0,0.00032768,5]
[381360793,1756152640824,-1500.0,0.00032768,5]
[381360794,1756152640834,-1500.0,0.00032768,5]
[381360795,1756152640843,-1500.0,0.00032768,5]
[381360796,1756152640853,-172.0,0.00032769,120]
[381360797,1756152640863,-360.0,0.00032816,2]
[381360798,1756152640874,-1792.58905785,0.00032864,5]
[381360799,1756152640884,-1000.0,0.00032869,5]
[381360800,1756152640894,-160.0,0.00032876,120]
[381360801,1756152640904,-417.15472785,0.00032876,120]
[381360802,1756152640914,-160.0,0.00032876,120]
[381360803,1756152640923,-1577.12,0.00032876,120]
[381360804,1756152640933,-151.0,0.00032891,7]
[381360805,1756152640943,-151.0,0.00032891,7]
[381360806,1756152640952,-438.979924,0.00032891,7]
[381360807,1756152640962,-151.0,0.00032891,7]
[381360808,1756152640972,-151.0,0.00032891,7]
[381360809,1756152640982,-438.979924,0.00032891,7]
[381360810,1756152640993,-151.0,0.00032891,7]
[381360811,1756152641003,-438.979924,0.00032891,7]
[381360812,1756152641013,-438.979924,0.00032891,7]
[381360813,1756152641023,-2074.11049161,0.00032963,2]
[381360814,1756152641035,-515.53125299,0.00032967,2]
[381360815,1756152641046,-2240.0,0.00032972,3]
[381360816,1756152641056,-500.0,0.00032973,5]
[381360817,1756152641065,-500.0,0.00032973,5]
[381360818,1756152641075,-500.0,0.00032973,5]
[381360819,1756152641085,-500.0,0.00032973,2]
[381360820,1756152641094,-500.0,0.00032973,5]
[381360821,1756152641104,-162.44132055,0.00032973,5]
[381360822,1756152641114,-151.0,0.00032973,7]
[381360823,1756152641125,-151.0,0.00032973,7]
[381360824,1756152641135,-222.066546,0.00032973,7]
[381360825,1756152641145,-282.906552,0.00032973,7]
[381360826,1756152641154,-282.906552,0.00032973,7]
[381360827,1756152641164,-151.0,0.00032973,7]
[381360828,1756152641173,-282.906552,0.00032973,7]
[381360829,1756152641183,-282.906552,0.00032973,7]
[381360830,1756152641192,-151.0,0.0003299,7]
[381360831,1756152641201,-151.0,0.0003299,7]
[381360832,1756152641210,-151.0,0.0003299,7]
[381360833,1756152641220,-167.083912,0.0003299,7]
[381360834,1756152641229,-151.809288,0.0003299,7]
[381360835,1756152641239,-151.0,0.0003299,7]
[381360836,1756152641248,-151.0,0.0003299,7]
[381360837,1756152641258,-151.0,0.0003299,7]
[381360838,1756152641267,-151.0,0.0003299,7]
[381360839,1756152641279,-151.0,0.0003299,7]
[381360840,1756152641289,-151.0,0.0003299,7]
[381360841,1756152641300,-151.0,0.0003299,7]
[381360842,1756152641309,-151.0,0.0003299,7]
[381360843,1756152641319,-151.0,0.0003299,7]
[381360844,1756152641329,-151.0,0.0003299,7]
[381360845,1756152641341,-151.0,0.0003299,7]
[381360846,1756152641352,-151.0,0.0003299,7]
[381360847,1756152641361,-151.0,0.0003299,7]
[381360848,1756152641371,-151.0,0.0003299,7]
[381360849,1756152641382,-189.558416,0.0003299,7]
[381360850,1756152641391,-151.0,0.0003299,7]
[381360851,1756152641401,-151.0,0.0003299,7]
[381360852,1756152641411,-151.0,0.0003299,7]
[381360853,1756152641421,-151.0,0.0003299,7]
[381360855,1756152641433,-277.395612,0.0003299,7]
[381360857,1756152641443,-19228.97,0.00033,14]
[381360858,1756152641452,-151.0,0.00033,7]
[381360860,1756152641463,-151.0,0.00033,7]
[381360861,1756152641472,-151.0,0.00033,7]
[381360862,1756152641482,-151.300686,0.00033,7]
[381360863,1756152641492,-151.0,0.00033,7]
[381360864,1756152641503,-364.19,0.00033,7]
[381360865,1756152641512,-912.61868067,0.00033099,2]
[381360866,1756152641522,-2771.42,0.000331,7]
[381360867,1756152641535,-1504.61431129,0.00033164,5]
[381360868,1756152641544,-2500.0,0.00033164,5]
[381360869,1756152641555,-499.05180158,0.00033182,2]
[381360870,1756152641565,-394.70172128,0.00033199,2]
[381360871,1756152641575,-209.40437684,0.00033199,2]
[381360872,1756152641585,-2715.12328229,0.00033199,2]
[381360873,1756152641594,-2074.11049161,0.00033306,2]
[381360874,1756152641604,-151.0,0.00033316,7]
[381360875,1756152641613,-299.920248,0.00033316,7]
[381360876,1756152641623,-151.0,0.00033316,7]
[381360877,1756152641633,-151.0,0.00033316,7]
[381360878,1756152641643,-151.0,0.00033316,7]
[381360879,1756152641652,-151.0,0.00033316,7]
[381360880,1756152641663,-151.0,0.00033316,7]
[381360881,1756152641672,-151.0,0.00033316,7]
[381360882,1756152641682,-151.000001,0.00033316,7]
[381360883,1756152641691,-151.0,0.00033316,7]
[381360884,1756152641701,-2000.0,0.00033316,5]
[381360885,1756152641711,-253.83423602,0.00033316,5]
[381360886,1756152641721,-359.09728462,0.00033316,5]
[381360887,1756152641731,-676.57086891,0.00033316,5]
[381360888,1756152641740,-2000.0,0.00033316,5]
[381360889,1756152641751,-2049.52724497,0.00033316,5]
[381360890,1756152641760,-2006.81919976,0.00033316,5]
[381360891,1756152641770,-160.98448861,0.00033316,5]
[381360892,1756152641783,-247.0,0.00033345,3]
[381360893,1756152641793,-331.0,0.00033345,2]
[381360894,1756152641803,-222.0,0.00033345,3]
[381360895,1756152641812,-420.0,0.00033364,2]
[381360896,1756152641821,-1463.6721462,0.00033417,5]
[381360897,1756152641831,-2240.0,0.00033483,3]
[381360898,1756152641841,-1009.13554947,0.00033521,5]
[381360899,1756152641851,-455.58910814,0.00033521,5]
[381360900,1756152641862,-860.98461043,0.00033521,5]
[381360901,1756152641872,-1000.0,0.00033521,5]
[381360902,1756152641883,-1000.0,0.00033521,2]
[381360903,1756152641894,-151.0,0.00033616,7]
[381360904,1756152641904,-170.0,0.00033642,120]
[381360905,1756152641914,-150.0,0.00033673,5]
[381360906,1756152641925,-151.0,0.0003369,7]
[381360907,1756152641935,-151.0,0.0003369,7]
[381360908,1756152641946,-282.906552,0.0003369,7]
[381360909,1756152641956,-282.906552,0.0003369,7]
[381360910,1756152641966,-151.0,0.0003369,7]
[381360912,1756152641977,-282.906552,0.0003369,7]
[381360913,1756152641987,-282.906552,0.0003369,7]
[381360914,1756152641997,-2074.11049161,0.0003369,2]
[381360915,1756152642007,-44578.13,0.000337,14]
[381360916,1756152642017,-151.0,0.000337,7]
[381360918,1756152642028,-151.0,0.000337,7]
[381360920,1756152642037,-151.0,0.000337,7]
[381360922,1756152642047,-151.0,0.000337,7]
[381360924,1756152642057,-151.318924,0.000337,7]
[381360926,1756152642066,-151.0,0.000337,7]
[381360928,1756152642076,-151.0,0.000337,7]
[381360930,1756152642086,-151.0,0.000337,7]
[381360932,1756152642096,-151.0,0.000337,7]
[381360934,1756152642107,-151.0,0.000337,7]
[381360936,1756152642117,-151.0,0.000337,7]
[381360938,1756152642128,-272.201808,0.000337,7]
[381360940,1756152642138,-151.0,0.000337,7]
[381360942,1756152642148,-151.0,0.000337,7]
[381360944,1756152642158,-196.456346,0.000337,7]
[381360946,1756152642168,-151.0,0.000337,7]
[381360948,1756152642178,-279.801612,0.000337,7]
[381360950,1756152642188,-151.0,0.000337,7]
[381360952,1756152642198,-151.0,0.000337,7]
[381360954,1756152642208,-151.0,0.000337,7]
[381360957,1756152642218,-151.0,0.000337,7]
[381360959,1756152642227,-151.0,0.000337,7]
[381360961,1756152642237,-151.0,0.000337,7]
[381360963,1756152642246,-3000.0,0.00033712,5]
[381360965,1756152642256,-1257.02617197,0.00033712,21]
[381360967,1756152642266,-151.0,0.00033855,7]
[381360969,1756152642278,-151.0,0.00033855,7]
[381360971,1756152642287,-151.0,0.00033855,7]
[381360973,1756152642297,-151.0,0.00033855,7]
[381360975,1756152642308,-151.0,0.00033855,7]
[381360977,1756152642317,-1500.0,0.00033864,5]
[381360979,1756152642328,-2500.0,0.00033864,5]
[381360981,1756152642339,-151.0,0.00033882,7]
[381360983,1756152642352,-151.0,0.00033882,7]
[381360986,1756152642362,-242.025526,0.00033882,7]
[381360989,1756152642373,-1289.2688901,0.00033882,2]
[381360992,1756152642383,-314.71250099,0.00033941,2]
[381360995,1756152642392,-2074.11049161,0.00034058,2]
[381360998,1756152642403,-270.177408,0.00034059,7]
[381361002,1756152642413,-151.0,0.00034059,7]
[381361005,1756152642423,-438.979924,0.00034059,7]
[381361008,1756152642434,-151.0,0.00034059,7]
[381361011,1756152642444,-438.979924,0.00034059,7]
[381361014,1756152642454,-151.0,0.00034059,7]
[381361017,1756152642464,-438.979924,0.00034059,7]
[381361021,1756152642476,-438.979924,0.00034059,7]
[381361024,1756152642486,-1500.0,0.00034068,2]
[381361027,1756152642496,-1500.0,0.00034068,5]
[381361030,1756152642506,-300.0,0.00034221,5]
[381361033,1756152642517,-151.0,0.00034221,7]
[381361036,1756152642530,-151.0,0.00034221,7]
[381361039,1756152642542,-151.0,0.00034221,7]
[381361041,1756152642553,-151.0,0.00034221,7]
[381361043,1756152642564,-151.0,0.00034221,7]
[381361046,1756152642574,-151.0,0.00034221,7]
[381361048,1756152642585,-151.0,0.00034221,7]
[381361050,1756152642596,-2164.64416824,0.0003426,5]
[381361052,1756152642607,-364.19,0.000343,7]
[381361054,1756152642619,-179.0,0.000344,2]
[381361055,1756152642630,-2986.92464646,0.00034412,5]
[381361057,1756152642641,-500.0,0.00034473,5]
[381361059,1756152642651,-500.0,0.00034473,5]
[381361061,1756152642661,-500.0,0.00034473,5]
[381361063,1756152642672,-500.0,0.00034473,5]
[381361065,1756152642682,-500.0,0.00034473,5]